lending/lending_fUSD_20260104
["ID","MTS","AMOUNT","RATE_DAILY","PERIOD"]
[400406974,1767520881403,-500.0,0.00017198,2]
[400406975,1767520881433,-500.0,0.00017198,2]
[400406976,1767520881462,-124.78127496,0.00017198,2]
[400406977,1767520881627,-375.21872504,0.00017198,2]
[400406978,1767520888398,2096.51436965,0.00043696,120]
[400406979,1767520893328,158.248,0.00016855,2]
[400406980,1767520893357,1191.537,0.00016855,2]
[400406982,1767520948976,7691.48,0.00016824,2]
[400406983,1767521006695,687.72323341,0.00043696,120]
[400406999,1767521099285,298.679,0.000328,120]
[400407000,1767521107823,166.66,0.00016945,2]
[400407001,1767521109648,-1524.64947797,0.00017013,2]
[400407002,1767521109681,-390.0,0.00017089,2]
[400407003,1767521109712,-1800.20192573,0.00017099,2]
[400407004,1767521109742,-390.0,0.00017113,2]
[400407005,1767521109773,-390.0,0.00017134,2]
[400407006,1767521109805,-300.0,0.00017187,2]
[400407007,1767521118873,-1200.0,0.00017187,2]
[400407008,1767521118904,-550.0,0.00017188,2]
[400407009,1767521118934,-300.0,0.00017188,2]
[400407010,1767521118963,-1200.0,0.00017188,2]
[400407011,1767521118995,-1699.80807433,0.00017188,2]
[400407012,1767521181913,3188.92,0.00016516,2]
[400407013,1767521189055,172.41,0.00013213,2]
[400407014,1767521189245,172.41,0.00015415,2]
[400407015,1767521221495,150.0,0.00016497,2]
[400407016,1767521229129,-1111.01334753,0.00017099,2]
[400407017,1767521245728,1587.47232566,0.00043696,120]
[400407018,1767521262413,151.0,0.00043696,30]
[400407019,1767521262807,151.0,0.00043696,30]
[400407020,1767521263350,151.0,0.00043696,30]
[400407021,1767521263642,151.0,0.00043696,30]
[400407022,1767521263937,151.0,0.00043696,30]
[400407023,1767521264285,151.0,0.00043696,30]
[400407024,1767521264574,151.0,0.00043696,30]
[400407025,1767521264858,151.0,0.00043696,30]
[400407026,1767521265129,151.0,0.00043696,30]
[400407027,1767521265414,151.0,0.00043696,30]
[400407028,1767521265702,240.175305,0.00043696,30]
[400407029,1767521278997,-2415.23083827,0.00017099,2]
[400407030,1767521279028,-300.0,0.00017187,2]
[400407031,1767521279063,-100.39385134,0.00017188,2]
[400407032,1767521279093,-842.51643498,0.00017188,2]
[400407034,1767521328080,-391.0,0.00017098,2]
[400407035,1767521328269,-8.6824939,0.00017167,2]
[400407036,1767521328302,-9597.84495562,0.00017167,2]
[400407037,1767521329286,200.0,0.00016471,2]
[400407038,1767521331251,-384.80005658,0.00017167,2]
[400407039,1767521331287,-200.0,0.00017174,2]
[400407040,1767521331328,-2683.72775082,0.00017188,2]
[400407041,1767521331366,-1200.0,0.00017188,2]
[400407042,1767521331403,-195.0,0.00017188,2]
[400407043,1767521331440,-250.0,0.00017188,2]
[400407044,1767521331560,-172.9543852,0.00017188,2]
[400407056,1767521339359,-127.0456148,0.00017188,2]
[400407057,1767521339392,-300.0,0.00017188,2]
[400407058,1767521339426,-300.0,0.00017188,2]
[400407059,1767521339459,-151.0,0.00017189,2]
[400407060,1767521339491,-151.0,0.00017189,2]
[400407061,1767521339525,-151.0,0.00017189,2]
[400407062,1767521339911,-151.0,0.00017189,2]
[400407063,1767521339942,-151.0,0.00017189,2]
[400407064,1767521339974,-151.0,0.00017189,2]
[400407065,1767521340003,-151.0,0.00017189,2]
[400407066,1767521340031,-151.0,0.00017189,2]
[400407067,1767521340061,-151.0,0.00017189,2]
[400407068,1767521340091,-151.0,0.00017189,2]
[400407069,1767521340120,-151.0,0.00017189,2]
[400407070,1767521340149,-151.0,0.00017189,2]
[400407071,1767521340179,-151.0,0.00017189,2]
[400407072,1767521340210,-151.0,0.00017189,2]
[400407073,1767521340241,-151.0,0.00017189,2]
[400407074,1767521340272,-151.0,0.00017189,2]
[400407075,1767521340300,-151.0,0.00017189,2]
[400407076,1767521340328,-151.0,0.00017189,2]
[400407077,1767521340356,-151.0,0.00017189,2]
[400407078,1767521340396,-151.0,0.00017189,2]
[400407079,1767521340430,-580.92,0.00017189,2]
[400407080,1767521340461,-195.0,0.00017189,2]
[400407081,1767521340492,-300.0,0.00017191,2]
[400407082,1767521340607,-500.0,0.00017198,2]
[400407083,1767521340639,-500.0,0.00017198,2]
[400407084,1767521340669,-500.0,0.00017198,2]
[400407085,1767521340699,-500.0,0.00017198,2]
[400407086,1767521340730,-199.91472152,0.00017198,2]
[400407087,1767521340760,-500.0,0.00017198,2]
[400407088,1767521340796,-154.09944903,0.00017198,2]
[400407089,1767521340826,-500.0,0.00017198,2]
[400407090,1767521340856,-500.0,0.00017198,2]
[400407091,1767521340883,-500.0,0.00017198,2]
[400407092,1767521340913,-500.0,0.00017198,2]
[400407093,1767521341567,-354.0787704,0.00017198,2]
[400407094,1767521341582,-145.9212296,0.00017198,2]
[400407095,1767521341592,-146.0604293,0.00017198,2]
[400407144,1767521400624,461.91981777,0.00043702,120]
[400407148,1767521408589,200.0,0.0001691,2]
[400407149,1767521409232,207.4,0.0001691,2]
[400407151,1767521409822,215.0738,0.0001691,2]
[400407152,1767521410542,318.48492014,0.0001691,2]
[400407157,1767521414684,400.37,0.00016665,2]
[400407172,1767521422098,166.66,0.00015821,2]
[400407174,1767521422304,166.66,0.00016154,2]
[400407175,1767521422505,166.66,0.00016487,2]
[400407176,1767521422703,166.66,0.0001682,2]
[400407204,1767521432369,-300.0,0.00017097,2]
[400407205,1767521432380,-677.37552332,0.00017097,2]
[400407206,1767521432392,-522.62447668,0.00017097,2]
[400407207,1767521432402,-1328.37552332,0.00017098,2]
[400407208,1767521432427,-111.02784506,0.00017098,2]
[400407209,1767521432439,-123950.85456874,0.00017098,2]
[400407210,1767521432450,-666.0,0.00017098,2]
[400407211,1767521432461,-806.34084538,0.00017098,2]
[400407212,1767521432473,-1091.33504491,0.00017098,2]
[400407213,1767521432485,-4562.01934014,0.00017098,2]
[400407214,1767521432496,-6733.92982044,0.00017098,2]
[400407217,1767521438333,-628.73244732,0.00017098,2]
[400407218,1767521438346,-392.85782781,0.00017098,2]
[400407219,1767521438384,-3503.49230048,0.00017098,2]
[400407220,1767521438439,-2409.62510599,0.00017098,2]
[400407221,1767521438504,-22.27234688,0.00017098,2]
[400407223,1767521440429,-1861.54,0.00017098,2]
[400407224,1767521440441,-438.65514724,0.00017098,2]
[400407225,1767521440588,-4140.0179443,0.00017098,2]
[400407226,1767521440600,-2584.14950502,0.00017098,2]
[400407227,1767521440641,-418.081416,0.00017098,2]
[400407228,1767521440749,-3986.67758016,0.00017098,2]
[400407229,1767521440761,-459.94361421,0.00017098,2]
[400407230,1767521440803,-839904.0717766,0.00017098,2]
[400407231,1767521440824,-166.66,0.00017153,2]
[400407232,1767521440834,-600.0,0.00017189,2]
[400407233,1767521440844,-2500.0,0.00017189,2]
[400407234,1767521440853,-195.0,0.0001719,2]
[400407235,1767521440863,-300.0,0.00017191,2]
[400407236,1767521440873,-300.0,0.00017191,2]
[400407237,1767521440882,-600.0,0.00017193,2]
[400407238,1767521440892,-600.0,0.00017193,2]
[400407239,1767521440902,-195.0,0.00017194,2]
[400407240,1767521440911,-550.0,0.00017197,2]
[400407241,1767521440921,-300.0,0.00017197,2]
[400407242,1767521440930,-567.14001468,0.00017198,2]
[400407243,1767521440940,-500.0,0.00017198,2]
[400407244,1767521440949,-500.0,0.00017198,2]
[400407245,1767521440959,-500.0,0.00017198,2]
[400407246,1767521440973,-595.20438035,0.00017198,2]
[400407247,1767521440982,-500.0,0.00017198,2]
[400407248,1767521440992,-500.0,0.00017198,2]
[400407249,1767521441002,-500.0,0.00017198,2]
[400407250,1767521441012,-500.0,0.00017198,2]
[400407251,1767521441021,-500.0,0.00017198,2]
[400407252,1767521441031,-500.0,0.00017198,2]
[400407253,1767521441041,-500.0,0.00017198,2]
[400407254,1767521441051,-500.0,0.00017198,2]
[400407255,1767521441060,-500.0,0.00017198,2]
[400407256,1767521441070,-500.0,0.00017198,2]
[400407257,1767521441080,-500.0,0.00017198,2]
[400407258,1767521441089,-500.0,0.00017198,2]
[400407259,1767521441099,-18755.68113208,0.00017198,2]
[400407260,1767521441109,-500.0,0.00017198,2]
[400407261,1767521441118,-500.0,0.00017198,2]
[400407262,1767521441128,-500.0,0.00017198,2]
[400407263,1767521441138,-1000.0,0.00017199,2]
[400407265,1767521441148,-391.0,0.00017229,2]
[400407267,1767521441162,-390.0,0.00017249,2]
[400407269,1767521441172,-1800.20192567,0.00017277,2]
[400407270,1767521441181,-3526.2441858,0.00017277,2]
[400407271,1767521441191,-1800.20192567,0.00017366,2]
[400407272,1767521441201,-3526.2441858,0.00017366,2]
[400407273,1767521441212,-391.0,0.0001739,2]
[400407274,1767521441222,-1800.20192567,0.00017455,2]
[400407275,1767521441231,-3526.2441858,0.00017455,2]
[400407276,1767521441241,-580.92,0.00017463,2]
[400407277,1767521441251,-166.66,0.00017486,2]
[400407278,1767521441261,-390.0,0.00017488,2]
[400407279,1767521441270,-390.0,0.00017497,2]
[400407280,1767521441279,-210.0,0.0001754,2]
[400407281,1767521441290,-1800.20192567,0.00017544,2]
[400407282,1767521441299,-3526.2441858,0.00017544,2]
[400407283,1767521441308,-500.0,0.00017565,2]
[400407284,1767521441317,-390.0,0.00017565,2]
[400407285,1767521441326,-390.0,0.00017588,2]
[400407286,1767521441336,-172.41,0.00017617,2]
[400407287,1767521441346,-1365.0,0.00017633,2]
[400407288,1767521441356,-1800.20192567,0.00017633,2]
[400407289,1767521441368,-3526.2441858,0.00017633,2]
[400407290,1767521441377,-340.98261354,0.00017643,2]
[400407291,1767521441386,-383.76920873,0.00017698,2]
[400407292,1767521441395,-422.71458731,0.00017699,2]
[400407293,1767521441404,-1800.20192567,0.00017722,2]
[400407294,1767521441413,-3526.2441858,0.00017722,2]
[400407295,1767521441423,-580.92,0.00017737,2]
[400407296,1767521441433,-1800.20192567,0.00017811,2]
[400407297,1767521441443,-3526.2441858,0.00017811,2]
[400407298,1767521441452,-3487.74255,0.0001782,2]
[400407299,1767521441462,-3487.74255,0.0001782,2]
[400407300,1767521441472,-3487.74255,0.0001782,2]
[400407301,1767521441481,-3487.74255,0.0001782,2]
[400407302,1767521441491,-500.0,0.00017836,2]
[400407303,1767521441501,-600.88665179,0.00017839,2]
[400407304,1767521441511,-210.0,0.0001786,2]
[400407305,1767521441521,-166.66,0.00017877,2]
[400407306,1767521441531,-10000.0,0.000179,2]
[400407307,1767521441541,-1800.20192567,0.000179,2]
[400407308,1767521441551,-3526.2441858,0.000179,2]
[400407309,1767521441561,-210.0,0.00017928,2]
[400407310,1767521441570,-151.0,0.00017997,2]
[400407311,1767521441581,-4203.4164905,0.00017998,2]
[400407312,1767521441590,-103566.4050549,0.00017999,2]
[400407313,1767521441600,-500.0,0.00017999,2]
[400407314,1767521441609,-500.0,0.00017999,2]
[400407315,1767521441619,-500.0,0.00017999,2]
[400407316,1767521441628,-500.0,0.00017999,2]
[400407317,1767521441638,-500.0,0.00017999,2]
[400407318,1767521441648,-500.0,0.00017999,2]
[400407319,1767521441658,-500.0,0.00017999,2]
[400407320,1767521441668,-500.0,0.00017999,2]
[400407321,1767521441678,-500.0,0.00017999,2]
[400407322,1767521441687,-4236765.66209679,0.00018,2]
[400407323,1767521442756,177.31565734,0.00016997,2]
[400407326,1767521444032,-260149.94477839,0.00018,2]
[400407327,1767521444046,-456.1657645,0.00018,2]
[400407328,1767521444084,-345.0,0.00018,2]
[400407329,1767521444139,-1050.08605991,0.00018,2]
[400407331,1767521444881,-773.11986588,0.00018,2]
[400407333,1767521444935,-736.67142582,0.00018,2]
[400407343,1767521446304,-299001.0,0.00018,2]
[400407345,1767521446316,-6402.076457,0.00018,2]
[400407347,1767521446328,-19183.69944258,0.00018,2]
[400407352,1767521446356,-11135.68440695,0.00018,2]
[400407353,1767521446368,-260.63,0.00018,2]
[400407357,1767521446411,-6999.75893021,0.00018,2]
[400407359,1767521446422,-46306.69109011,0.00018,2]
[400407365,1767521446466,-324.80690336,0.00018,2]
[400407367,1767521446478,-2682.21311622,0.00018,2]
[400407369,1767521446489,-17996.78052404,0.00018,2]
[400407371,1767521446520,-1600.0,0.00018,2]
[400407372,1767521446531,-5347.36631166,0.00018,2]
[400407403,1767521528307,3000.0,0.00043702,30]
[400407409,1767521575866,2912.09712475,0.00016999,2]
[400407412,1767521581174,614.0,0.00043702,30]
[400407424,1767521602914,3000.0,0.00043702,30]
[400407426,1767521610094,3000.0,0.00043702,30]
[400407506,1767521617678,3000.0,0.00043702,30]
[400407517,1767521625867,3000.0,0.00043702,30]
[400407518,1767521626153,210.81090803,0.00016999,2]
[400407519,1767521636622,3000.0,0.00043702,30]
[400407520,1767521644287,3000.0,0.00043702,30]
[400407527,1767521658361,3000.0,0.00043702,30]
[400407584,1767521702262,1500.0,0.00016765,2]
[400407586,1767521712751,-177.31565734,0.00017053,2]
[400407587,1767521712781,-320.29962081,0.00017062,2]
[400407588,1767521712810,-195.0,0.00017071,2]
[400407589,1767521712854,-300.0,0.00017089,2]
[400407590,1767521712884,-300.0,0.00017089,2]
[400407591,1767521712913,-1200.0,0.00017096,2]
[400407592,1767521712942,-300.0,0.00017096,2]
[400407593,1767521712972,-1200.0,0.00017096,2]
[400407594,1767521713001,-300.0,0.00017096,2]
[400407595,1767521713031,-550.0,0.00017097,2]
[400407596,1767521713059,-102.23399082,0.00017097,2]
[400407597,1767521720843,3506.96,8.461e-05,2]
[400407598,1767521721308,3506.96,8.906e-05,2]
[400407599,1767521721443,3506.96,9.352e-05,2]
[400407600,1767521721647,3506.96,9.797e-05,2]
[400407601,1767521721839,3506.96,0.00010242,2]
[400407602,1767521722122,3506.96,0.00010688,2]
[400407603,1767521722162,-110.31146206,0.00017097,2]
[400407604,1767521722192,-607.35958267,0.00017097,2]
[400407605,1767521722222,-500.0,0.00017097,2]
[400407606,1767521722253,-500.0,0.00017097,2]
[400407607,1767521722285,-480.04352148,0.00017097,2]
[400407608,1767521722320,-206.33719982,0.00017097,2]
[400407609,1767521722494,3506.96,0.00011133,2]
[400407610,1767521722708,1684.94646794,0.00011578,2]
[400407611,1767521722734,1822.01353206,0.00011578,2]
[400407612,1767521722892,3506.96,0.00012024,2]
[400407613,1767521723102,3506.96,0.00012469,2]
[400407614,1767521723290,3506.96,0.00012914,2]
[400407615,1767521723487,3506.96,0.0001336,2]
[400407616,1767521723715,3506.96,0.00013805,2]
[400407617,1767521723908,3506.96,0.0001425,2]
[400407618,1767521724093,3506.96,0.00014696,2]
[400407619,1767521724338,3506.96,0.00015141,2]
[400407620,1767521724532,3506.96,0.00015586,2]
[400407621,1767521724938,3506.96,0.00016031,2]
[400407622,1767521725138,3506.96,0.00016477,2]
[400407623,1767521725339,1823.33477101,0.00016922,2]
[400407635,1767521761525,-1683.62522899,0.00016922,2]
[400407636,1767521761558,-500.0,0.00017097,2]
[400407637,1767521761590,-500.0,0.00017097,2]
[400407638,1767521762007,300.0,0.00017097,2]
[400407639,1767521764931,500.0,0.00017097,2]
[400407640,1767521765164,500.0,0.00017097,2]
[400407641,1767521765392,500.0,0.00017097,2]
[400407642,1767521765628,595.20438035,0.00017097,2]
[400407643,1767521766059,500.0,0.00017097,2]
[400407644,1767521766288,500.0,0.00017097,2]
[400407645,1767521766523,500.0,0.00017097,2]
[400407646,1767521766751,500.0,0.00017097,2]
[400407647,1767521784049,757.67,0.00043702,30]
[400407670,1767521814736,237.55516167,0.00013699,2]
[400407671,1767521814759,458.38483833,0.00013699,2]
[400407672,1767521821632,300.0,0.00017097,2]
[400407673,1767521829989,2820.99534864,0.00016998,2]
[400407683,1767521893161,1200.0,0.00017097,2]
[400407684,1767521911447,3176.3621831,0.00043702,120]
[400407685,1767521920961,500.0,0.00017097,2]
[400407686,1767521921224,511.33936173,0.00017097,2]
[400407687,1767521941273,300.0,0.00017097,2]
[400407694,1767522001303,1200.0,0.00017097,2]
[400407695,1767522001444,300.0,0.00017097,2]
[400407697,1767522005266,5988.67063827,0.00017088,2]
[400407698,1767522035310,567.14001468,0.00017097,2]
[400407700,1767522049261,250.0,0.00017,2]
[400407701,1767522061270,300.0,0.00017097,2]
[400407702,1767522062394,550.0,0.00017097,2]
[400407704,1767522068527,500.0,0.00017097,2]
[400407705,1767522068760,500.0,0.00017097,2]
[400407706,1767522069014,500.0,0.00017097,2]
[400407707,1767522069284,500.0,0.00017097,2]
[400407710,1767522082172,500.0,0.00017097,2]
[400407711,1767522082454,500.0,0.00017097,2]
[400407712,1767522082826,500.0,0.00017097,2]
[400407713,1767522083171,500.0,0.00017097,2]
[400407714,1767522086445,2620.88741223,0.00016998,2]
[400407715,1767522093321,171.435,0.00016756,2]
[400407716,1767522093350,1274.997,0.00016756,2]
[400407717,1767522093383,265.55057309,0.00017097,2]
[400407718,1767522093419,234.44942691,0.00017097,2]
[400407719,1767522093469,207.93755321,0.00017097,2]
[400407720,1767522100007,170.53,0.00016786,2]
[400407722,1767522110486,161.79341213,0.00017097,2]
[400407723,1767522121553,300.0,0.00017097,2]
[400407729,1767522137850,151.0,0.00017088,2]
[400407730,1767522138316,151.0,0.00017088,2]
[400407731,1767522139017,151.0,0.00017088,2]
[400407732,1767522139553,179.69924058,0.00017088,2]
[400407734,1767522165156,4581.52,0.00016731,2]
[400407735,1767522194027,1132.0,0.00017097,2]
[400407736,1767522215617,2579.08036717,0.00016708,2]
[400407737,1767522215639,6820.92963283,0.00016708,2]
[400407738,1767522216334,2717.56566086,0.00016998,2]
[400407739,1767522242215,550.0,0.00017097,2]
[400407740,1767522259678,159.67108242,0.00016998,2]
[400407742,1767522301320,1200.0,0.00017097,2]
[400407743,1767522301350,300.0,0.00017097,2]
[400407744,1767522301431,300.0,0.00017097,2]
[400407747,1767522328662,7490.33891758,0.00016,2]
[400407748,1767522328685,10000.01,0.00016,2]
[400407749,1767522328711,10000.01,0.00016,2]
[400407750,1767522328734,2584.40400748,0.00016,2]
[400407751,1767522334282,7415.60599252,0.00016998,2]
[400407753,1767522349561,1763.081782,0.00016913,2]
[400407755,1767522412791,8236.928218,0.000162,5]
[400407756,1767522412817,10000.01,0.000162,5]
[400407757,1767522412840,10000.01,0.000162,5]
[400407758,1767522412865,10000.01,0.000162,5]
[400407759,1767522412892,10000.01,0.000162,5]
[400407760,1767522412916,10000.01,0.000162,5]
[400407761,1767522412939,10000.01,0.000162,5]
[400407762,1767522412963,3083.39191171,0.000162,5]
[400407763,1767522424300,1961.44842889,0.00015,2]
[400407765,1767522479767,2572.44,0.00016679,2]
[400407766,1767522483215,-400.0,0.00016998,2]
[400407767,1767522488022,2382.7296594,7.945e-05,2]
[400407768,1767522488049,3283.0274066,7.945e-05,2]
[400407769,1767522491850,295.60980113,0.00015356,2]
[400407772,1767522515256,500.0,0.00016898,2]
[400407778,1767522530544,-2278.53050748,0.00016998,2]
[400407779,1767522530581,-250.0,0.00017004,2]
[400407780,1767522530612,-195.0,0.0001701,2]
[400407781,1767522530644,-300.0,0.0001701,2]
[400407782,1767522530675,-600.0,0.00017023,2]
[400407783,1767522530704,-300.0,0.00017048,2]
[400407784,1767522530732,-600.0,0.00017064,2]
[400407785,1767522530760,-300.0,0.00017078,2]
[400407786,1767522530794,-52.94898504,0.00017096,2]
[400407834,1767522549256,-204.93951531,0.00016998,2]
[400407835,1767522549293,-300.0,0.00016998,2]
[400407836,1767522550328,630.52047785,0.00016998,2]
[400407837,1767522567952,1178.78,0.00016941,2]
[400407838,1767522596754,2943.06084695,0.00016948,2]
[400407839,1767522601190,300.0,0.00016997,2]
[400407840,1767522601229,300.0,0.00016997,2]
[400407841,1767522601261,1200.0,0.00016997,2]
[400407842,1767522602534,2437.76964458,0.00016948,2]
[400407843,1767522602559,79.50738906,0.00016948,2]
[400407844,1767522603174,293.0,0.00016998,2]
[400407845,1767522605455,9627.50261094,0.00016988,2]
[400407846,1767522605479,9301.19738906,0.00016988,2]
[400407847,1767522605665,698.81261094,0.00016988,2]
[400407848,1767522605688,10000.01,0.00016988,2]
[400407849,1767522605712,8229.87738906,0.00016988,2]
[400407851,1767522619967,701.16550727,0.00043697,30]
[400407860,1767522631514,-2910.02355392,0.00016998,2]
[400407861,1767522631526,-651.94327724,0.00016998,2]
[400407862,1767522631572,-1735.02512486,0.00016998,2]
[400407863,1767522631585,-1671.51544629,0.00016998,2]
[400407864,1767522631600,-797.59445327,0.00016998,2]
[400407865,1767522631612,-1108.44106798,0.00016998,2]
[400407866,1767522631625,-1889.44914174,0.00016998,2]
[400407867,1767522631638,-1703.53710003,0.00016998,2]
[400407873,1767522637549,-8568.3,0.00016998,2]
[400407874,1767522637662,-787.36629238,0.00016998,2]
[400407875,1767522637689,-2017.31479431,0.00016998,2]
[400407876,1767522637704,-57323.86330018,0.00016998,2]
[400407999,1767522639768,-915.36,0.00016998,2]
[400408011,1767522639874,-917920.2664478,0.00016998,2]
[400408013,1767522639883,-300.0,0.0001701,2]
[400408015,1767522639894,-600.0,0.0001701,2]
[400408017,1767522639903,-195.0,0.00017023,2]
[400408019,1767522639912,-280.69565865,0.00017048,2]
[400408021,1767522639922,-2500.0,0.00017048,2]
[400408023,1767522639931,-300.0,0.00017048,2]
[400408025,1767522639941,-2943.06084688,0.00017054,2]
[400408027,1767522639951,-2517.27703358,0.00017054,2]
[400408029,1767522639960,-1000.0,0.00017096,2]
[400408031,1767522639970,-500.0,0.00017097,2]
[400408033,1767522639982,-500.0,0.00017097,2]
[400408035,1767522639997,-500.0,0.00017097,2]
[400408037,1767522640009,-453.8862,0.00017099,2]
[400408039,1767522640018,-2943.06084688,0.0001716,2]
[400408041,1767522640028,-2517.27703358,0.0001716,2]
[400408044,1767522640037,-580.92,0.00017198,2]
[400408046,1767522640051,-2943.06084688,0.00017265,2]
[400408048,1767522640060,-2517.27703358,0.00017265,2]
[400408050,1767522640070,-210.0,0.00017313,2]
[400408052,1767522640079,-2943.06084688,0.00017371,2]
[400408054,1767522640089,-2517.27703358,0.00017371,2]
[400408056,1767522640099,-580.92,0.00017472,2]
[400408058,1767522640109,-2943.06084688,0.00017477,2]
[400408060,1767522640119,-2517.27703358,0.00017477,2]
[400408062,1767522640129,-2572.44,0.00017512,2]
[400408064,1767522640139,-2943.06084688,0.00017583,2]
[400408066,1767522640148,-2517.27703358,0.00017583,2]
[400408068,1767522640157,-422.71458731,0.00017598,2]
[400408070,1767522640167,-724.36805306,0.00017598,2]
[400408072,1767522640177,-2943.06084688,0.00017688,2]
[400408074,1767522640186,-2517.27703358,0.00017688,2]
[400408076,1767522640195,-210.0,0.00017703,2]
[400408078,1767522640205,-580.92,0.00017746,2]
[400408080,1767522640214,-2634.12,0.00017765,2]
[400408082,1767522640224,-2943.06084688,0.00017794,2]
[400408085,1767522640234,-485.30946,0.0001782,2]
[400408087,1767522640246,-485.30947,0.0001782,2]
[400408089,1767522640256,-485.30947,0.0001783,2]
[400408091,1767522640265,-485.30947,0.0001786,2]
[400408093,1767522640275,-2086.0,0.00017869,2]
[400408095,1767522640285,-485.30947,0.0001788,2]
[400408097,1767522640296,-10000.0,0.000179,2]
[400408099,1767522640311,-1366.0,0.000179,2]
[400408101,1767522640320,-485.30947,0.0001791,2]
[400408103,1767522640330,-2086.0,0.00017914,2]
[400408105,1767522640339,-210.0,0.00017918,2]
[400408107,1767522640348,-151.0,0.00017997,2]
[400408109,1767522640359,-103566.4050549,0.00017998,2]
[400408116,1767522640420,-3302.1915301,0.00017998,2]
[400408118,1767522640430,-500.0,0.00017998,2]
[400408120,1767522640439,-500.0,0.00017998,2]
[400408122,1767522640449,-500.0,0.00017998,2]
[400408124,1767522640458,-81361.4606942,0.00017999,2]
[400408126,1767522640467,-500.0,0.00017999,2]
[400408128,1767522640477,-161.54,0.00017999,2]
[400408130,1767522640486,-500.0,0.00017999,2]
[400408132,1767522640496,-500.0,0.00017999,2]
[400408134,1767522640505,-500.0,0.00017999,2]
[400408136,1767522640515,-500.0,0.00017999,2]
[400408138,1767522640525,-3578222.54175175,0.00018,2]
[400408140,1767522640535,-536864.03030116,0.00018,2]
[400408195,1767522642894,500.0,0.00016898,2]
[400408198,1767522643346,-1134.975,0.00017794,2]
[400408199,1767522643357,-354.248635,0.00017794,2]
[400408200,1767522643369,-448.45149999,0.00017794,2]
[400408201,1767522643405,-579.60189859,0.00017794,2]
[400408202,1767522643415,-2943.06084688,0.000179,2]
[400408203,1767522643425,-21233.33725453,0.00018,2]
[400408204,1767522644149,-173957.5865756,0.00018,2]
[400408205,1767522644160,-1829.61,0.00018,2]
[400408222,1767522645529,-508.31709661,0.00018,2]
[400408223,1767522645583,-15630.39272714,0.00018,2]
[400408224,1767522645693,-3804.20005,0.00018,2]
[400408225,1767522645705,-3252.75000005,0.00018,2]
[400408251,1767522668090,1976.450204,7.945e-05,2]
[400408252,1767522693311,1019.998,0.00016658,2]
[400408253,1767522693343,171.435,0.00016658,2]
[400408255,1767522706769,1000.0,0.00016898,2]
[400408256,1767522708318,313.80868476,0.00043697,120]
[400408260,1767522717837,7808.577,0.00016997,2]
[400408261,1767522717861,10000.01,0.00016997,2]
[400408262,1767522722176,-947.09413208,0.00016997,2]
[400408269,1767522736992,684.7274,0.00016898,2]
[400408272,1767522738012,50000.0,0.00043697,65]
[400408277,1767522767813,193.54509952,0.00016997,2]
[400408278,1767522767852,225.269447,0.00016997,2]
[400408279,1767522767911,500.0,0.00016997,2]
[400408280,1767522767997,243.79109561,0.00016997,2]
[400408281,1767522768027,344.14104098,0.00016997,2]
[400408283,1767522770142,234.4559451,0.00016997,2]
[400408284,1767522770175,500.0,0.00016997,2]
[400408285,1767522770208,500.0,0.00016997,2]
[400408286,1767522770240,500.0,0.00016997,2]